Cogmind - Beta 13 @@@ ROGUE MODE // 2024.04.21 @ 20:16:34 Player: Sap Result: Destroyed by G-34 Mercenary with Small Laser Performance ------------- Evolutions (0) 0 Regions Visited (1) 200 Robots Destroyed (19) 95 Value Destroyed (390) 390 Prototype IDs (0) 0 Alien Tech Used (0) 0 Bonus (0) 0 TOTAL SCORE: 685 Bonus ------- None Cogmind --------- Core Integrity 0/250 Matter 300/300 Energy 120/250 System Corruption 2% Temperature Cool (6) Movement Walking (190) Ox1 Location -10/Materials Parts ------- > --- POWER (1) -------- Ion Engine > --- PROPULSION (2) --- Aluminum Leg Aluminum Leg > --- UTILITY (2) ------ Large Storage Unit > --- WEAPON (2) ------- (None) > --- INVENTORY (15) --- Ion Engine Aluminum Leg Aluminum Leg Aluminum Leg Aluminum Leg Aluminum Leg Compact Wheel Medium Storage Unit Large Storage Unit Light Armor Plating Light Armor Plating Peak State ------------ > --- POWER ------------ Ion Engine > --- PROPULSION ------- Light Treads Light Treads > --- UTILITY ---------- Small Storage Unit Large Storage Unit > --- WEAPON ----------- Medium Laser Assault Rifle > --- INVENTORY -------- Light Ion Engine Aluminum Leg Aluminum Leg Aluminum Leg Aluminum Leg Wheel Compact Wheel Medium Storage Unit Large Storage Unit Small Laser [Rating: 8] Favorites ----------- Power Ion Engine Engine Ion Engine Propulsion Light Treads Treads Light Treads Leg Aluminum Leg Utility Large Storage Unit Storage Large Storage Unit Protection Light Armor Plating Weapon Medium Laser Energy Gun Medium Laser Ballistic Gun Assault Rifle Build | -11 -10 ------- Run | Yrd Mat Slots Evolved . | . . Power . | . . Propulsion . | . . Utility . | . . Weapon . | . . Parts Attached 15 | 7 8 Power 5 | 2 3 Engine 5 | 2 3 Core . | . . Reactor . | . . Propulsion 4 | 2 2 Treads 2 | 2 . Leg 2 | . 2 Wheel . | . . Hover . | . . Flight . | . . Utility 3 | 1 2 Device . | . . Storage 2 | 1 1 Processor . | . . Hackware . | . . Protection 1 | . 1 Artifact . | . . Weapon 3 | 2 1 Energy Gun 2 | 1 1 Energy Cannon . | . . Ballistic Gun 1 | 1 . Ballistic Cannon . | . . Launcher . | . . Special Weapon . | . . Impact Weapon . | . . Slashing Weapon . | . . Piercing Weapon . | . . Special Melee Weapon . | . . Unidentified Prototypes . | . . Parts Lost 7 | . 7 Power 1 | . 1 Propulsion 2 | . 2 Utility 1 | . 1 Weapon 3 | . 3 Highest Loss Streak 7 | . 7 To Critical Strikes . | . . Average Slot Usage (%) 93 | . 93 Engine 14 | . 14 Treads 26 | . 26 Storage 18 | . 18 Protection 5 | . 5 Energy Gun 14 | . 14 Ballistic Gun 13 | . 13 Naked Turns . | . . Heaviest Build 34 | 14 34 Greatest Support 40 | 40 40 Greatest Overweight (x) 6 | 2 6 Average Overweight (x) . | . . Largest Inventory Capacity 15 | 8 15 Average Capacity 12 | 6 13 Most Carried 15 | 7 15 Average Carried 9 | 3 10 Final Capacity 15 | 8 15 Final Carried 11 | 6 11 Class Distribution -------------------- 100% | Mutant Dominant Class ---------------- Mutant | -10/Materials Resources | -11 -10 ----------- Run | Yrd Mat Matter Collected 489 | 285 204 Remotely . | . . Salvage Created 584 | 77 507 Parts 30 | 3 27 Haulers Intercepted 1 | . 1 Recyclers Shooed 1 | . 1 Parts Field Recycled . | . . Retrieved Matter . | . . Parts Self-Destructed . | . . Prevented . | . . Kills | -11 -10 ------- Run | Yrd Mat Combat Hostiles Destroyed 10 | . 10 Guns 9 | . 9 AOE 1 | . 1 Classes Destroyed 9 | 1 8 Worker 3 | . 3 Builder 1 | . 1 Tunneler 1 | . 1 Hauler 1 | . 1 Recycler 1 | 1 . Mechanic 1 | . 1 Watcher 1 | . 1 Swarmer 2 | . 2 Grunt 8 | . 8 Best Kill Streak 6 | 1 6 Combat Bots Only 2 | . 2 Max Kills in Single Turn 5 | 1 5 Gunslinging . | . . Exploded 1 | . 1 Melee . | . . Uniques/NPCs Destroyed . | . . Combat | -11 -10 -------- Run | Yrd Mat Hostile Shots Fired 96 | . 96 Missed 23 | . 23 Damage Taken 1103 | . 1103 Core 257 | . 257 Absorbed by Shields . | . . Core Remaining (%) 100 | 100 . Volleys Fired 52 | 5 47 Largest 2 | 2 2 Hottest 90 | 70 90 Shots Fired 98 | 10 88 Gun 98 | 10 88 Cannon . | . . Launcher . | . . Special . | . . Kinetic 46 | 5 41 Thermal 52 | 5 47 Explosive . | . . Electromagnetic . | . . Robot Hit Streak 8 | 4 8 Robot Miss Streak 5 | 2 5 Penetration Max . | . . Secondary Targets 2 | . 2 Max Gunslinging Chain 1 | . 1 Shots Hit Robots 57 | 7 50 Core Hits 29 | 2 27 Critical Kills . | . . Critical Parts Destroyed . | . . Critical Strikes 1 | . 1 Burn 1 | . 1 Melee Attacks . | . . Impact . | . . Slashing . | . . Piercing . | . . Sneak Attacks . | . . Combat Hostiles . | . . Follow-up Attacks . | . . Damage Inflicted 1207 | 83 1124 Guns 760 | 83 677 Cannons . | . . Explosions 432 | . 432 Melee . | . . Ramming 15 | . 15 Kinetic 331 | 34 297 Thermal 861 | 49 812 Explosive . | . . Electromagnetic . | . . Impact . | . . Slashing . | . . Piercing . | . . Highest Corruption 2 | . 2 Average Corruption 1 | . 1 Corruption Purged . | . . Corruption Blocked . | . . Effects 4 | . 4 Message Errors 1 | . 1 Matter Fused 2 | . 2 Weapon Failures 1 | . 1 Overload Shots . | . . Overflow Damage 83 | . 83 Projectiles . | . . Explosions 83 | . 83 Melee . | . . Knockbacks 1 | . 1 Impact 1 | . 1 Kinetic . | . . Secondary . | . . Self-Inflicted Damage 169 | . 169 Shots 2 | . 2 Rammed 1 | . 1 Targets Rammed 2 | . 2 Kicked . | . . Crushed 1 | . 1 Highest Temperature 234 | 56 234 Average Temperature 67 | 25 71 Received Heat Transfer 390 | . 390 Effects 1 | . 1 Energy Bleed 1 | . 1 Siege Activations . | . . Robots Corrupted . | . . Combat Hostiles . | . . Parts Fried . | . . Impact Corruptions . | . . Robots Melted . | . . Combat Hostiles . | . . Parts Melted 4 | 1 3 Heat Transferred 1657 | 148 1509 Parts Sabotaged . | . . Parts Stolen . | . . Parts Stripped . | . . Power Chain Reactions . | . . Alert | -11 -10 ------- Run | Yrd Mat Peak Influence 210 | 5 210 Initial 3 | . 3 Average 35 | 3 42 Maximum Alert Level 1 | . 1 Low Security (%) 98 | 100 97 Level 1 1 | . 2 Level 2 . | . . Level 3 . | . . Level 4 . | . . Level 5 . | . . High Security . | . . Max Security . | . . Squads Dispatched 3 | . 3 Investigation 2 | . 2 Extermination . | . . Reinforcement 1 | . 1 Assault . | . . Garrison . | . . Intercept . | . . Searches Triggered . | . . Construction Impeded . | . . Haulers Reinforced . | . . Active Scanning Responses . | . . Cargo Convoy Interrupts . | . . Stealth | -11 -10 --------- Run | Yrd Mat Distress Signals 2 | . 2 Communications Jammed . | . . Distress Signals . | . . Times Spotted 22 | . 22 Peak Tracking Total 6 | . 6 Tactical Retreats 2 | . 2 Traps | -11 -10 ------- Run | Yrd Mat Traps Triggered 4 | . 4 Indirectly . | . . Trap Hack Attempts . | . . Triggered . | . . Disarmed . | . . Reprogrammed . | . . Reused . | . . Traps Extracted . | . . Installed . | . . Triggered . | . . Machines | -11 -10 ---------- Run | Yrd Mat Machines Disabled 2 | . 2 Max in Single Turn 2 | . 2 Machines Repaired . | . . Machines Dismantled . | . . Machines Sabotaged . | . . Overloaded Fab Kills . | . . Hacking | -11 -10 --------- Run | Yrd Mat Machines Accessed 1 | . 1 Terminals . | . . Fabricators . | . . Repair Stations . | . . Recycling Units 1 | . 1 Scanalyzers . | . . Garrison Access . | . . Total Hacks 1 | . 1 Successful 1 | . 1 Failed . | . . Catastrophic . | . . Database Lockouts . | . . Manual 1 | . 1 Terminals . | . . Fabricators . | . . Repair Stations . | . . Recycling Units 1 | . 1 Scanalyzers . | . . Garrison Access . | . . Terminal Hacks . | . . Fabricator Hacks . | . . Repair Station Hacks . | . . Recycling Unit Hacks . | . . Scanalyzer . | . . Garrison Access Hacks . | . . Unauthorized Hacks 1 | . 1 Terminals . | . . Fabricators . | . . Repair Stations . | . . Recycling Units 1 | . 1 Reject 1 | . 1 Scanalyzers . | . . Garrison Access . | . . Data Cores Recovered . | . . Used . | . . Hacking Detections . | . . Full Trace Events . | . . Feedback Events . | . . Feedback Blocked . | . . Robot Schematics Acquired . | . . Robots Built . | . . Authchips . | . . Time . | . . Total Robot Build Rating . | . . Part Schematics Acquired . | . . Parts Built . | . . Authchips . | . . Time . | . . Total Part Build Rating . | . . Parts Repaired . | . . Time . | . . Parts Recycled . | . . Recycled Matter . | . . Retrieved Matter . | . . Retrieved Components . | . . Parts Scanalyzed . | . . Part Schematics Acquired . | . . Parts Damaged . | . . Bothacking | -11 -10 ------------ Run | Yrd Mat Used RIF Installer . | . . Robots Hacked . | . . Non-combat . | . . Combat . | . . Robot Hacks Applied . | . . Relay Couplers Released . | . . Fabnet Peak Effective % . | . . Robots Rewired . | . . Allies Hacked . | . . Hacks Repelled . | . . Allies | -11 -10 -------- Run | Yrd Mat Total Allies . | . . Largest Group . | . . Highest-Rated Group . | . . Highest-Rated Ally . | . . Total Orders . | . . Ally Attacks . | . . Total Damage . | . . Kills . | . . Allies Corrupted . | . . Allies Melted . | . . Intel | -11 -10 ------- Run | Yrd Mat Robot Analysis Total . | . . Derelict Logs Recovered . | . . Drone Launches . | . . Drone Recoveries . | . . Exploration | -11 -10 ------------- Run | Yrd Mat Turns Passed 714 | 129 585 Spaces Moved 329 | 72 257 Core 20 | 19 1 Treads 304 | 53 251 Legs 5 | . 5 Wheels . | . . Hover . | . . Flight . | . . Fastest Speed 50 | 50 160 Average Speed 156 | 137 161 Slowest Speed 350 | 160 350 Overloaded Moves . | . . Propulsion Burnouts . | . . Robots Hopped . | . . Cave-ins Triggered . | . . Exploration Rate (%) 21 | 5 38 Regions Visited 1 Branch Regions . Pre-discovered Areas . | . . Known Exits Taken . | . . Unknown Exits Taken 1 | 1 . Scrap Searched . | . . Spaces Dug . | . . Terrain Destroyed 44 | . 44 Melee . | . . Projectile . | . . AOE 44 | . 44 Terrain Rammed . | . . Walls Destroyed . | . . Machines Disabled . | . . Actions | -11 -10 --------- Run | Yrd Mat Total 425 | 89 336 Wait 10 | . 10 Move 328 | 71 257 Hop . | . . Pick Up 15 | 6 9 Fast Attach 7 | 5 2 Attach 5 | 1 4 Detach . | . . Swap 3 | 1 2 Drop 3 | . 3 Fire 52 | 5 47 Melee . | . . Ram . | . . Kick . | . . Crush 2 | . 2 Escape Stasis . | . . Rewire . | . . Trap . | . . Miscellaneous . | . . Route ------- -11/Scrapyard -10/Materials (discovered 1 exit: [*Min]) History --------- Turn | Location | Event 15 | -11/Scrapyard | Discovered new exit (range 15) 130 | -11/Scrapyard | Entered Materials 318 | -10/Materials | Build established: Mutant 517 | -10/Materials | Discovered new exit (range 16) 683 | -10/Materials | Core integrity fell below 50% 701 | -10/Materials | Core integrity fell below 20% 715 | -10/Materials | Destroyed by G-34 Mercenary with Small Laser Last Messages --------------- 00700_ Destroyed Sml. Laser. 00700_ Med. Laser destroyed. 00700_ Destroyed Med. Laser. 00700_ Ion Engine destroyed. 00700_ Destroyed Ion Engine. 00700_ Destroyed Wheel. 00700_ K-01 Serf destroyed. 00700_ Destroyed Lgt. Ion Engine. 00700_ Destroyed Recalibrator. 00700_ M-13 Machinist destroyed. 00700_ Weight Redist. System melted. 00700_ A-02 Transporter destroyed. 00705_ Acquired 10 matter. 00705_ U-05 Engineer builds a Wall. 00706_ Acquired 10 matter. 00707_ Acquired 4 matter. 00707_ Acquired 6 matter. 00709_ U-05 Engineer builds a Wall. 00713_ JX0>WAA1YE:US4X&, M&UOEBZT4W 00713_ U-05 Engineer builds a Wall. Map ----- +----------------------------------------------------+ | ?????????????????????? # """" #######??? | | ??????????????????????" / """ * " #??? | | ????????????????????????# + #??? | | ????????????????????????# # #??? | | ????????????????????????# ##### = # +??? | | ????????????????????????# ?????# =*# #??? | | ????????????????????????# ??????#* # #??? | | ????????????????????????? ????# ! ########??? | | ????????????????????????? "???# #?????????? | | ????????????????????????? #??## ####??????? | | ????????????????????????? #??# "#??????? | | ???????????????????????## #??# ""#??????? | | ??????????????????????? #### ||#??????? | | ???????????????????????#;; % ; # < ""#??????? | | ?????????????????????### ;;;;# ||#??????? | | ?????????????????????#; ;; ""#??????? | | ?????????????#########; ;; "#??????? | | ?????????????# ; ;## ####??????? | | ?????????????# ; g;## #?????????? | | ?????????????# ; [ " # #?????????? | | ?????????????# ; !=! "## #?????????? | | ?????????????# ; % = "## #####?????? | | ?????????????+ ";!! ## ### ####??? | | ?????????????# "=%*;## u #? | | ?????????????# ##*% u #? | | ?????????????# ?#@% #? | | ?????????????########??# "" """ """ """ #? | | ???????????????????????# "Y """ """ ^""" #? | | ???????????????????????# "" """ """ """ ##? | | ???????????????????????# ????? | | ???????????????????????# ???? | | ???????????????????????# """ """ """ """ ???? | | ??????????????????????# """ """ """ """ ???? | | ??????????????????????+ """ """ """ "??????? | | ??????????????????????# ! ???? ??????? | | ??????????????????????# ???????????? | | ??????????????????????###### ##### ??????????? | | ???????????????????????????# #???? ???????????? | | ???????????????????????????? #????##??????????? | | ???????????????????????????? ?????????????????? | | ???????????????????????????? ?????????????????? | | ????????????????????????????????????????????????? | | ????????????????????????????????????????????????? | | ????????????????????????????????????????????????? | | ????????????????????????????????????????????????? | | ????????????????????????????????????????????????? | | ????????????????????????????????????????????????? | | ????????????????????????????????????????????????? | | ????????????????????????????????????????????????? | | ????????????????????????????????????????????????? | +----------------------------------------------------+ Best States ------------- Heat Dissipation 25 Energy Generation 10 Energy Capacity 250 Matter Stores 300 Matter Capacity 300 Sight Range 16 Terrain Scan Density 10 Armor Coverage 150 Evasion (%) 50 Recoil Reduction 2 Item Schematics ----------------- None Robot Schematics ------------------ None Fabricated ------------ Nothing Alien Tech Used ----------------- None Achievements -------------- None Challenges ------------ None Game ------ Seed ScrapGlidesysJammer Manual? 0 Play Time 00:08:09 Cumulative 28.6 hours Start 2024.04.21 @ 17:58:48 End 2024.04.21 @ 20:16:34 Sessions 1 Manual Loads 0 Difficulty Rogue Special Mode None Game No. 22 Rogue 21 Adventurer 0 Explorer 1 Win Type - Total 0 Types 0/0/0/0/0/0/0/0/0 Lore% 21 Gallery% 29 Achievement% 18 Wizard Run 0 Options --------- Layout 0 ASCII 0 Keyboard 0 Movement Numpad Keybinds 1 Fullscreen 2 Font 24/Smallcaps Map View 76x50 Zoom Use 0% Tactical HUD 1 Map Filters NONE Filters NONE Steam 1 RUN: 41dce9ab-cc5d-46d7-892b-2a96ab19ec22